[Event "Titled Tuesday Blitz January 10 Late 2023"]
[White "Bjelobrk, Igor"]
[Black "Seletsky, Grigory"]
[WhiteFideId "4300726"]
[BlackFideId "14112191"]
[WhiteElo "2403"]
[BlackElo "2259"]
[Result "1-0"]
[Round "07"]
[TimeControl "180+2"]
[Date "2023.01.10"]
[WhiteClock "0:00:42"]
[BlackClock "0:00:10"]

1. Nf3 {[%clk 0:00:00]}  d5 {[%clk 0:00:00]} 2. g3 {[%clk 0:02:55]}  Nf6 {[%clk 0:02:59]} 3. Bg2 {[%clk 0:02:54]}  c6 {[%clk 0:02:57]} 4. O-O {[%clk 0:02:53]}  Bf5 {[%clk 0:02:57]} 5. c4 {[%clk 0:02:52]}  e6 {[%clk 0:02:57]} 6. cxd5 {[%clk 0:02:52]}  exd5 {[%clk 0:02:56]} 7. d3 {[%clk 0:02:51]}  Be7 {[%clk 0:02:54]} 8. Qb3 {[%clk 0:02:49]}  Qb6 {[%clk 0:02:53]} 9. Qc2 {[%clk 0:02:49]}  h6 {[%clk 0:02:52]} 10. Nc3 {[%clk 0:02:49]}  Nbd7 {[%clk 0:02:42]} 11. e4 {[%clk 0:02:49]}  dxe4 {[%clk 0:02:36]} 12. dxe4 {[%clk 0:02:48]}  Bh7 {[%clk 0:02:33]} 13. Be3 {[%clk 0:02:48]}  Qa5 {[%clk 0:02:33]} 14. Nd4 {[%clk 0:02:47]}  O-O {[%clk 0:02:30]} 15. Rad1 {[%clk 0:02:46]}  Rad8 {[%clk 0:02:22]} 16. h3 {[%clk 0:02:44]}  Rfe8 {[%clk 0:02:07]} 17. Nb3 {[%clk 0:02:42]}  Qa6 {[%clk 0:01:59]} 18. Rfe1 {[%clk 0:02:39]}  b5 {[%clk 0:01:49]} 19. a3 {[%clk 0:02:38]}  Bf8 {[%clk 0:01:41]} 20. f3 {[%clk 0:01:50]}  Ne5 {[%clk 0:01:39]} 21. Qe2 {[%clk 0:01:43]}  Nc4 {[%clk 0:01:22]} 22. Bf2 {[%clk 0:01:33]}  Nd5 {[%clk 0:01:20]} 23. Nb1 {[%clk 0:01:29]}  Ndb6 {[%clk 0:01:05]} 24. Nd4 {[%clk 0:01:09]}  Qc8 {[%clk 0:00:48]} 25. b3 {[%clk 0:00:52]}  Ne5 {[%clk 0:00:38]} 26. Rc1 {[%clk 0:00:50]}  Qb7 {[%clk 0:00:29]} 27. f4 {[%clk 0:00:49]}  Ned7 {[%clk 0:00:17]} 28. Nxc6 {[%clk 0:00:48]}  Rc8 {[%clk 0:00:16]} 29. e5 {[%clk 0:00:48]}  Qa6 {[%clk 0:00:15]} 30. a4 {[%clk 0:00:45]}  Bxb1 {[%clk 0:00:14]} 31. Rxb1 {[%clk 0:00:42]}  Bc5 {[%clk 0:00:10]} 32. Qxb5 {[%clk 0:00:42]} 1-0


[Site "https://www.chess.com"]

[Event "Titled Tuesday Blitz January 10 Late 2023"]
[White "Winterberg, Lukas"]
[Black "Novikova, Galina"]
[WhiteFideId "24622702"]
[BlackFideId "4157095"]
[WhiteElo "2402"]
[BlackElo "2073"]
[Result "1-0"]
[Round "07"]
[TimeControl "180+2"]
[Date "2023.01.10"]
[WhiteClock "0:00:55"]
[BlackClock "0:00:09"]

1. b3 {[%clk 0:00:00]}  e6 {[%clk 0:00:00]} 2. Bb2 {[%clk 0:03:00]}  d5 {[%clk 0:03:00]} 3. c4 {[%clk 0:03:00]}  Nf6 {[%clk 0:03:00]} 4. Nf3 {[%clk 0:03:01]}  Be7 {[%clk 0:03:00]} 5. g3 {[%clk 0:03:01]}  O-O {[%clk 0:03:00]} 6. Bg2 {[%clk 0:02:55]}  b6 {[%clk 0:02:59]} 7. O-O {[%clk 0:02:56]}  Bb7 {[%clk 0:02:59]} 8. e3 {[%clk 0:02:56]}  Nbd7 {[%clk 0:03:00]} 9. Qe2 {[%clk 0:02:56]}  dxc4 {[%clk 0:03:00]} 10. bxc4 {[%clk 0:02:57]}  c5 {[%clk 0:02:56]} 11. Rd1 {[%clk 0:02:56]}  Qc7 {[%clk 0:02:57]} 12. d3 {[%clk 0:02:53]}  Rad8 {[%clk 0:02:57]} 13. Nbd2 {[%clk 0:02:50]}  Bc6 {[%clk 0:02:56]} 14. a4 {[%clk 0:02:50]}  Qb7 {[%clk 0:02:50]} 15. a5 {[%clk 0:02:49]}  e5 {[%clk 0:02:50]} 16. axb6 {[%clk 0:02:47]}  axb6 {[%clk 0:02:46]} 17. Ne1 {[%clk 0:02:34]}  Bxg2 {[%clk 0:02:47]} 18. Nxg2 {[%clk 0:02:33]}  Rfe8 {[%clk 0:02:44]} 19. Bc3 {[%clk 0:02:34]}  Bd6 {[%clk 0:02:34]} 20. Rab1 {[%clk 0:02:23]}  Ra8 {[%clk 0:02:32]} 21. Rb2 {[%clk 0:02:11]}  Ra3 {[%clk 0:02:21]} 22. Rb3 {[%clk 0:02:01]}  Rea8 {[%clk 0:02:17]} 23. Rdb1 {[%clk 0:02:01]}  Rxb3 {[%clk 0:02:16]} 24. Nxb3 {[%clk 0:02:00]}  h5 {[%clk 0:02:14]} 25. Nh4 {[%clk 0:02:01]}  g6 {[%clk 0:02:02]} 26. Qf3 {[%clk 0:02:01]}  Qxf3 {[%clk 0:02:00]} 27. Nxf3 {[%clk 0:02:00]}  Kf8 {[%clk 0:01:53]} 28. Ra1 {[%clk 0:02:01]}  Rxa1+ {[%clk 0:01:49]} 29. Bxa1 {[%clk 0:01:56]}  Ke7 {[%clk 0:01:46]} 30. Kg2 {[%clk 0:01:57]}  Ke6 {[%clk 0:01:47]} 31. Nbd2 {[%clk 0:01:57]}  Bc7 {[%clk 0:01:47]} 32. Ng5+ {[%clk 0:01:57]}  Ke7 {[%clk 0:01:42]} 33. h3 {[%clk 0:01:56]}  Nb8 {[%clk 0:01:42]} 34. Nge4 {[%clk 0:01:57]}  Nxe4 {[%clk 0:01:38]} 35. Nxe4 {[%clk 0:01:40]}  Nc6 {[%clk 0:01:37]} 36. Kf3 {[%clk 0:01:41]}  Nb4 {[%clk 0:01:38]} 37. Ke2 {[%clk 0:01:40]}  f5 {[%clk 0:01:37]} 38. Nc3 {[%clk 0:01:39]}  Ke6 {[%clk 0:01:32]} 39. f3 {[%clk 0:01:40]}  e4 {[%clk 0:01:30]} 40. dxe4 {[%clk 0:01:37]}  Bxg3 {[%clk 0:01:22]} 41. exf5+ {[%clk 0:01:31]}  Kxf5 {[%clk 0:01:22]} 42. e4+ {[%clk 0:01:25]}  Kg5 {[%clk 0:01:22]} 43. Nd5 {[%clk 0:01:20]}  Kh4 {[%clk 0:01:17]} 44. e5 {[%clk 0:01:03]}  Kxh3 {[%clk 0:00:47]} 45. e6 {[%clk 0:01:00]}  Bd6 {[%clk 0:00:41]} 46. Be5 {[%clk 0:00:56]}  Bf8 {[%clk 0:00:10]} 47. Nf4+ {[%clk 0:00:55]}  Kh2 {[%clk 0:00:09]} 48. Nxg6+ {[%clk 0:00:55]} 1-0


[Site "https://www.chess.com"]

[Event "Titled Tuesday Blitz January 10 Late 2023"]
[White "Boder, Jan"]
[Black "Musovic, Armin"]
[WhiteFideId "16243226"]
[BlackFideId "939935"]
[WhiteElo "2294"]
[BlackElo "2261"]
[Result "1-0"]
[Round "07"]
[TimeControl "180+2"]
[Date "2023.01.10"]
[WhiteClock "0:00:49"]
[BlackClock "0:00:18"]

1. c4 {[%clk 0:00:00]}  e5 {[%clk 0:00:00]} 2. g3 {[%clk 0:03:00]}  Nf6 {[%clk 0:02:59]} 3. Bg2 {[%clk 0:03:00]}  c6 {[%clk 0:02:59]} 4. Nf3 {[%clk 0:03:01]}  e4 {[%clk 0:03:00]} 5. Nd4 {[%clk 0:03:01]}  d5 {[%clk 0:03:00]} 6. cxd5 {[%clk 0:03:01]}  Bc5 {[%clk 0:03:01]} 7. Nb3 {[%clk 0:03:02]}  Bb6 {[%clk 0:02:59]} 8. O-O {[%clk 0:03:01]}  O-O {[%clk 0:03:00]} 9. d3 {[%clk 0:03:01]}  exd3 {[%clk 0:02:59]} 10. Qxd3 {[%clk 0:03:01]}  h6 {[%clk 0:03:00]} 11. Nc3 {[%clk 0:03:01]}  cxd5 {[%clk 0:02:59]} 12. Nxd5 {[%clk 0:02:56]}  Nc6 {[%clk 0:02:58]} 13. Bd2 {[%clk 0:02:55]}  Nxd5 {[%clk 0:02:58]} 14. Bxd5 {[%clk 0:02:43]}  Bh3 {[%clk 0:02:54]} 15. Rfd1 {[%clk 0:02:43]}  Qf6 {[%clk 0:02:54]} 16. Qf3 {[%clk 0:02:39]}  Qxf3 {[%clk 0:02:48]} 17. Bxf3 {[%clk 0:02:32]}  Rfe8 {[%clk 0:02:28]} 18. Bc3 {[%clk 0:02:33]}  g5 {[%clk 0:02:25]} 19. e3 {[%clk 0:02:32]}  Rad8 {[%clk 0:02:13]} 20. Bf6 {[%clk 0:02:31]}  Rc8 {[%clk 0:02:05]} 21. g4 {[%clk 0:02:19]}  Ne5 {[%clk 0:01:59]} 22. Bxe5 {[%clk 0:02:09]}  Rxe5 {[%clk 0:01:45]} 23. Nd4 {[%clk 0:02:09]}  Rd8 {[%clk 0:01:45]} 24. Nf5 {[%clk 0:02:09]}  Rxd1+ {[%clk 0:01:32]} 25. Rxd1 {[%clk 0:02:04]}  h5 {[%clk 0:01:28]} 26. Nd6 {[%clk 0:02:04]}  hxg4 {[%clk 0:01:25]} 27. Bg2 {[%clk 0:01:53]}  Rc5 {[%clk 0:01:22]} 28. Bxb7 {[%clk 0:01:52]}  Rc2 {[%clk 0:01:06]} 29. Bd5 {[%clk 0:01:26]}  Rxb2 {[%clk 0:01:02]} 30. Nxf7 {[%clk 0:01:25]}  Kg7 {[%clk 0:00:55]} 31. Nxg5 {[%clk 0:01:25]}  Kf6 {[%clk 0:00:49]} 32. Ne4+ {[%clk 0:01:25]}  Ke5 {[%clk 0:00:48]} 33. Ng3 {[%clk 0:01:15]}  Rc2 {[%clk 0:00:48]} 34. Bb3 {[%clk 0:01:14]}  Rc5 {[%clk 0:00:36]} 35. Ne2 {[%clk 0:01:14]}  Rc8 {[%clk 0:00:28]} 36. Nf4 {[%clk 0:01:11]}  Rb8 {[%clk 0:00:25]} 37. Rd5+ {[%clk 0:01:11]}  Kf6 {[%clk 0:00:20]} 38. Rh5 {[%clk 0:01:10]}  Rc8 {[%clk 0:00:21]} 39. Nxh3 {[%clk 0:01:07]}  Rc1+ {[%clk 0:00:18]} 40. Kg2 {[%clk 0:01:06]}  gxh3+ {[%clk 0:00:18]} 41. Rxh3 {[%clk 0:01:06]}  Rb1 {[%clk 0:00:19]} 42. Rh6+ {[%clk 0:01:07]}  Kg7 {[%clk 0:00:19]} 43. Re6 {[%clk 0:01:06]}  Rb2 {[%clk 0:00:20]} 44. h4 {[%clk 0:01:05]}  Rd2 {[%clk 0:00:20]} 45. h5 {[%clk 0:01:04]}  Rd7 {[%clk 0:00:20]} 46. h6+ {[%clk 0:01:02]}  Kh7 {[%clk 0:00:20]} 47. Bc2+ {[%clk 0:01:02]}  Kg8 {[%clk 0:00:20]} 48. Re8+ {[%clk 0:01:02]}  Kf7 {[%clk 0:00:21]} 49. h7 {[%clk 0:01:01]}  Kxe8 {[%clk 0:00:21]} 50. h8=Q+ {[%clk 0:00:58]}  Ke7 {[%clk 0:00:22]} 51. Bf5 {[%clk 0:00:57]}  Rd1 {[%clk 0:00:23]} 52. Qe5+ {[%clk 0:00:56]}  Kd8 {[%clk 0:00:21]} 53. Qe6 {[%clk 0:00:56]}  Kc7 {[%clk 0:00:21]} 54. e4 {[%clk 0:00:53]}  Rd2 {[%clk 0:00:21]} 55. e5 {[%clk 0:00:51]}  Rxf2+ {[%clk 0:00:18]} 56. Kg3 {[%clk 0:00:48]}  Rd2 {[%clk 0:00:18]} 57. Qc8# {[%clk 0:00:49]} 1-0


[Site "https://www.chess.com"]

[Event "Titled Tuesday Blitz January 10 Late 2023"]
[White "Womacka, Mathias"]
[Black "Stavri, Gligor"]
[WhiteFideId "4611390"]
[BlackFideId "4706013"]
[WhiteElo "2396"]
[BlackElo "1867"]
[Result "0-1"]
[Round "07"]
[TimeControl "180+2"]
[Date "2023.01.10"]
[WhiteClock "0:00:12"]
[BlackClock "0:00:03"]

1. e4 {[%clk 0:00:00]}  c5 {[%clk 0:00:00]} 2. Nf3 {[%clk 0:03:00]}  Nc6 {[%clk 0:02:59]} 3. d4 {[%clk 0:03:00]}  cxd4 {[%clk 0:02:58]} 4. Nxd4 {[%clk 0:03:00]}  e6 {[%clk 0:02:59]} 5. Nc3 {[%clk 0:03:00]}  Qc7 {[%clk 0:02:59]} 6. Be3 {[%clk 0:02:59]}  a6 {[%clk 0:02:59]} 7. Bd3 {[%clk 0:02:55]}  b5 {[%clk 0:02:58]} 8. Nxc6 {[%clk 0:02:54]}  Qxc6 {[%clk 0:02:49]} 9. e5 {[%clk 0:02:52]}  Bb7 {[%clk 0:02:43]} 10. Be4 {[%clk 0:02:48]}  Qc7 {[%clk 0:02:42]} 11. Qf3 {[%clk 0:02:48]}  Bxe4 {[%clk 0:02:42]} 12. Nxe4 {[%clk 0:02:47]}  Rc8 {[%clk 0:02:39]} 13. Bf4 {[%clk 0:02:47]}  Qc6 {[%clk 0:02:35]} 14. O-O {[%clk 0:02:35]}  Be7 {[%clk 0:02:24]} 15. c3 {[%clk 0:02:34]}  f5 {[%clk 0:01:51]} 16. exf6 {[%clk 0:02:23]}  Nxf6 {[%clk 0:01:49]} 17. Nxf6+ {[%clk 0:02:16]}  Bxf6 {[%clk 0:01:49]} 18. Qxc6 {[%clk 0:02:16]}  Rxc6 {[%clk 0:01:50]} 19. a4 {[%clk 0:02:15]}  Ke7 {[%clk 0:01:49]} 20. axb5 {[%clk 0:02:15]}  axb5 {[%clk 0:01:44]} 21. Ra5 {[%clk 0:02:14]}  b4 {[%clk 0:01:44]} 22. cxb4 {[%clk 0:02:09]}  Rc4 {[%clk 0:01:42]} 23. Be3 {[%clk 0:02:03]}  Bxb2 {[%clk 0:01:40]} 24. Bc5+ {[%clk 0:01:55]}  Kf6 {[%clk 0:01:32]} 25. Ra7 {[%clk 0:01:53]}  d5 {[%clk 0:01:30]} 26. g3 {[%clk 0:01:50]}  Rb8 {[%clk 0:01:25]} 27. Re1 {[%clk 0:01:41]}  Bc3 {[%clk 0:01:07]} 28. Re3 {[%clk 0:01:31]}  Bxb4 {[%clk 0:00:59]} 29. Rf3+ {[%clk 0:00:58]}  Kg6 {[%clk 0:00:46]} 30. Bxb4 {[%clk 0:00:54]}  Rcxb4 {[%clk 0:00:42]} 31. Rff7 {[%clk 0:00:54]}  d4 {[%clk 0:00:34]} 32. Rxg7+ {[%clk 0:00:54]}  Kf5 {[%clk 0:00:34]} 33. Rxh7 {[%clk 0:00:54]}  e5 {[%clk 0:00:34]} 34. Rad7 {[%clk 0:00:48]}  Ke4 {[%clk 0:00:24]} 35. Kg2 {[%clk 0:00:43]}  Rb2 {[%clk 0:00:18]} 36. Rh4+ {[%clk 0:00:40]}  Kd3 {[%clk 0:00:16]} 37. Rh5 {[%clk 0:00:32]}  e4 {[%clk 0:00:15]} 38. Rhd5 {[%clk 0:00:27]}  R8b4 {[%clk 0:00:13]} 39. Kf1 {[%clk 0:00:27]}  Rb1+ {[%clk 0:00:11]} 40. Kg2 {[%clk 0:00:19]}  R1b2 {[%clk 0:00:11]} 41. Kf1 {[%clk 0:00:20]}  Rc4 {[%clk 0:00:12]} 42. h3 {[%clk 0:00:19]}  Rb1+ {[%clk 0:00:11]} 43. Kg2 {[%clk 0:00:19]}  Rb2 {[%clk 0:00:10]} 44. Kf1 {[%clk 0:00:18]}  Kc3 {[%clk 0:00:11]} 45. h4 {[%clk 0:00:18]}  d3 {[%clk 0:00:10]} 46. h5 {[%clk 0:00:17]}  Rb1+ {[%clk 0:00:07]} 47. Kg2 {[%clk 0:00:17]}  Rb2 {[%clk 0:00:04]} 48. Kh3 {[%clk 0:00:17]}  Rxf2 {[%clk 0:00:05]} 49. h6 {[%clk 0:00:12]}  Rc6 {[%clk 0:00:04]} 50. R7d6 {[%clk 0:00:12]}  Rxd6 {[%clk 0:00:05]} 51. Rxd6 {[%clk 0:00:11]}  Rf7 {[%clk 0:00:04]} 52. g4 {[%clk 0:00:12]}  d2 {[%clk 0:00:05]} 53. g5 {[%clk 0:00:12]}  Rf3+ {[%clk 0:00:05]} 54. Kg4 {[%clk 0:00:12]}  Rd3 {[%clk 0:00:03]} 55. Rxd3+ {[%clk 0:00:12]}  exd3 {[%clk 0:00:03]} 56. h7 {[%clk 0:00:11]}  d1=Q+ {[%clk 0:00:04]} 57. Kf5 {[%clk 0:00:12]}  Qh1 {[%clk 0:00:04]} 58. Kg6 {[%clk 0:00:12]}  d2 {[%clk 0:00:04]} 59. Kg7 {[%clk 0:00:12]}  d1=Q {[%clk 0:00:05]} 60. h8=Q {[%clk 0:00:13]}  Qxh8+ {[%clk 0:00:05]} 61. Kxh8 {[%clk 0:00:12]}  Qg4 {[%clk 0:00:06]} 62. g6 {[%clk 0:00:12]}  Qh5+ {[%clk 0:00:06]} 63. Kg7 {[%clk 0:00:12]}  Kd4 {[%clk 0:00:04]} 64. Kf6 {[%clk 0:00:12]}  Qh6 {[%clk 0:00:04]} 65. Kf7 {[%clk 0:00:13]}  Qf4+ {[%clk 0:00:04]} 66. Ke6 {[%clk 0:00:12]}  Qg5 {[%clk 0:00:04]} 67. Kf7 {[%clk 0:00:11]}  Qf5+ {[%clk 0:00:04]} 68. Kg7 {[%clk 0:00:11]}  Ke5 {[%clk 0:00:04]} 69. Kh6 {[%clk 0:00:11]}  Kf6 {[%clk 0:00:05]} 70. g7 {[%clk 0:00:12]}  Qg6# {[%clk 0:00:03]} 0-1


[Site "https://www.chess.com"]

[Event "Titled Tuesday Blitz January 10 Late 2023"]
[White "Gardezi, Arsal"]
[Black "Kosakowski, Jakub"]
[WhiteFideId "30949521"]
[BlackFideId "1185080"]
[WhiteElo "2093"]
[BlackElo "2485"]
[Result "0-1"]
[Round "07"]
[TimeControl "180+2"]
[Date "2023.01.10"]
[WhiteClock "0:00:06"]
[BlackClock "0:00:47"]

1. Nf3 {[%clk 0:00:00]}  d5 {[%clk 0:00:00]} 2. g3 {[%clk 0:03:00]}  Nd7 {[%clk 0:02:57]} 3. Bg2 {[%clk 0:02:59]}  e5 {[%clk 0:02:57]} 4. d3 {[%clk 0:03:00]}  Ngf6 {[%clk 0:02:57]} 5. Nbd2 {[%clk 0:03:00]}  Bd6 {[%clk 0:02:57]} 6. e4 {[%clk 0:03:01]}  c6 {[%clk 0:02:57]} 7. O-O {[%clk 0:03:01]}  O-O {[%clk 0:02:57]} 8. Re1 {[%clk 0:03:02]}  Re8 {[%clk 0:02:57]} 9. c3 {[%clk 0:02:57]}  a5 {[%clk 0:02:57]} 10. Qc2 {[%clk 0:02:52]}  h6 {[%clk 0:02:55]} 11. d4 {[%clk 0:02:50]}  exd4 {[%clk 0:02:53]} 12. cxd4 {[%clk 0:02:40]}  Nxe4 {[%clk 0:02:49]} 13. Nxe4 {[%clk 0:02:40]}  dxe4 {[%clk 0:02:47]} 14. Rxe4 {[%clk 0:02:41]}  Rxe4 {[%clk 0:02:47]} 15. Qxe4 {[%clk 0:02:41]}  Nf6 {[%clk 0:02:47]} 16. Qd3 {[%clk 0:02:42]}  Be6 {[%clk 0:02:48]} 17. Bd2 {[%clk 0:02:39]}  Qc7 {[%clk 0:02:47]} 18. Re1 {[%clk 0:02:33]}  Bxa2 {[%clk 0:02:46]} 19. Ne5 {[%clk 0:02:32]}  Bd5 {[%clk 0:02:45]} 20. Qf5 {[%clk 0:02:25]}  Re8 {[%clk 0:02:43]} 21. Bxh6 {[%clk 0:02:19]}  Bxg2 {[%clk 0:02:41]} 22. Kxg2 {[%clk 0:02:11]}  Re6 {[%clk 0:02:00]} 23. Bxg7 {[%clk 0:02:08]}  Kxg7 {[%clk 0:01:55]} 24. Qg5+ {[%clk 0:00:34]}  Kh7 {[%clk 0:01:54]} 25. Qh4+ {[%clk 0:00:34]}  Kg8 {[%clk 0:01:33]} 26. Qg5+ {[%clk 0:00:34]}  Kh8 {[%clk 0:01:26]} 27. Ng6+ {[%clk 0:00:34]}  Kh7 {[%clk 0:01:21]} 28. Rxe6 {[%clk 0:00:19]}  fxe6 {[%clk 0:01:00]} 29. Qxf6 {[%clk 0:00:15]}  Qg7 {[%clk 0:01:00]} 30. Qxg7+ {[%clk 0:00:15]}  Kxg7 {[%clk 0:01:01]} 31. Ne5 {[%clk 0:00:13]}  a4 {[%clk 0:01:02]} 32. Nc4 {[%clk 0:00:11]}  Bc7 {[%clk 0:00:53]} 33. Kf3 {[%clk 0:00:11]}  b5 {[%clk 0:00:52]} 34. Nd2 {[%clk 0:00:12]}  Ba5 {[%clk 0:00:52]} 35. Ne4 {[%clk 0:00:11]}  b4 {[%clk 0:00:51]} 36. Nc5 {[%clk 0:00:11]}  a3 {[%clk 0:00:51]} 37. Nxe6+ {[%clk 0:00:12]}  Kf6 {[%clk 0:00:49]} 38. bxa3 {[%clk 0:00:12]}  b3 {[%clk 0:00:48]} 39. Nc5 {[%clk 0:00:10]}  b2 {[%clk 0:00:48]} 40. Ne4+ {[%clk 0:00:06]}  Ke7 {[%clk 0:00:47]} 41. Nd2 {[%clk 0:00:06]} 0-1


[Site "https://www.chess.com"]

[Event "Titled Tuesday Blitz January 10 Late 2023"]
[White "Melikyan, Gnel"]
[Black "Colivet Gamboa, Julio Cesar"]
[WhiteFideId "54109990"]
[BlackFideId "3949583"]
[WhiteElo "2238"]
[BlackElo "1844"]
[Result "1-0"]
[Round "07"]
[TimeControl "180+2"]
[Date "2023.01.10"]
[WhiteClock "0:00:09"]
[BlackClock "0:00:06"]

1. a3 {[%clk 0:00:00]}  Nf6 {[%clk 0:00:00]} 2. Nf3 {[%clk 0:02:48]}  g6 {[%clk 0:02:59]} 3. b4 {[%clk 0:02:47]}  Bg7 {[%clk 0:02:59]} 4. Bb2 {[%clk 0:02:46]}  O-O {[%clk 0:02:59]} 5. g3 {[%clk 0:02:46]}  c5 {[%clk 0:03:00]} 6. Bg2 {[%clk 0:02:46]}  Qb6 {[%clk 0:03:00]} 7. c3 {[%clk 0:02:46]}  cxb4 {[%clk 0:02:58]} 8. axb4 {[%clk 0:02:41]}  d6 {[%clk 0:02:53]} 9. O-O {[%clk 0:02:36]}  Bf5 {[%clk 0:02:50]} 10. d3 {[%clk 0:02:35]}  Nbd7 {[%clk 0:02:49]} 11. Nbd2 {[%clk 0:02:33]}  d5 {[%clk 0:02:48]} 12. Qa4 {[%clk 0:02:27]}  Rfc8 {[%clk 0:02:45]} 13. Nd4 {[%clk 0:02:24]}  Bg4 {[%clk 0:02:43]} 14. h3 {[%clk 0:02:23]}  e5 {[%clk 0:02:31]} 15. hxg4 {[%clk 0:02:21]}  exd4 {[%clk 0:02:30]} 16. c4 {[%clk 0:02:09]}  Ne5 {[%clk 0:02:30]} 17. g5 {[%clk 0:02:10]}  Nfg4 {[%clk 0:01:41]} 18. Bxd5 {[%clk 0:02:05]}  Qd8 {[%clk 0:01:34]} 19. f4 {[%clk 0:02:04]}  Nc6 {[%clk 0:01:31]} 20. b5 {[%clk 0:02:02]}  Ne3 {[%clk 0:01:28]} 21. bxc6 {[%clk 0:01:56]}  bxc6 {[%clk 0:01:23]} 22. Bf3 {[%clk 0:01:55]}  Nxf1 {[%clk 0:01:15]} 23. Kxf1 {[%clk 0:01:51]}  Rab8 {[%clk 0:01:14]} 24. Ba3 {[%clk 0:01:50]}  Qd7 {[%clk 0:01:13]} 25. Kg2 {[%clk 0:01:47]}  h6 {[%clk 0:01:09]} 26. gxh6 {[%clk 0:01:44]}  Bxh6 {[%clk 0:01:03]} 27. Ne4 {[%clk 0:01:42]}  Bg7 {[%clk 0:01:03]} 28. Bc5 {[%clk 0:01:42]}  f5 {[%clk 0:01:01]} 29. Ng5 {[%clk 0:01:34]}  Rc7 {[%clk 0:00:34]} 30. Qa3 {[%clk 0:01:28]}  Rcb7 {[%clk 0:00:29]} 31. Bd6 {[%clk 0:01:03]}  Rd8 {[%clk 0:00:08]} 32. Qa6 {[%clk 0:00:42]}  Rb6 {[%clk 0:00:07]} 33. Qxa7 {[%clk 0:00:33]}  Qxa7 {[%clk 0:00:05]} 34. Rxa7 {[%clk 0:00:32]}  Rxd6 {[%clk 0:00:05]} 35. c5 {[%clk 0:00:32]}  Bf6 {[%clk 0:00:06]} 36. cxb6 {[%clk 0:00:33]}  c5 {[%clk 0:00:04]} 37. b7 {[%clk 0:00:31]}  Rb6 {[%clk 0:00:05]} 38. Ra8+ {[%clk 0:00:30]}  Kg7 {[%clk 0:00:05]} 39. b8=Q {[%clk 0:00:30]}  Rxb8 {[%clk 0:00:06]} 40. Rxb8 {[%clk 0:00:30]}  Bxg5 {[%clk 0:00:07]} 41. fxg5 {[%clk 0:00:30]}  f4 {[%clk 0:00:08]} 42. Bd5 {[%clk 0:00:30]}  Kh7 {[%clk 0:00:09]} 43. Rb7+ {[%clk 0:00:28]}  Kh8 {[%clk 0:00:08]} 44. Kf3 {[%clk 0:00:24]}  c4 {[%clk 0:00:08]} 45. Kxf4 {[%clk 0:00:20]}  cxd3 {[%clk 0:00:09]} 46. Ke5 {[%clk 0:00:19]}  dxe2 {[%clk 0:00:08]} 47. Kf6 {[%clk 0:00:09]}  e1=Q {[%clk 0:00:06]} 48. Rb8+ {[%clk 0:00:09]} 1-0


[Site "https://www.chess.com"]

[Event "Titled Tuesday Blitz January 10 Late 2023"]
[White "Gurevich, Dmitry"]
[Black "Cueto, Jonny"]
[WhiteFideId "2000407"]
[BlackFideId "3300145"]
[WhiteElo "2393"]
[BlackElo "2122"]
[Result "1-0"]
[Round "07"]
[TimeControl "180+2"]
[Date "2023.01.10"]
[WhiteClock "0:01:03"]
[BlackClock "0:00:02"]

1. d4 {[%clk 0:00:00]}  d6 {[%clk 0:00:00]} 2. Nf3 {[%clk 0:03:00]}  Nd7 {[%clk 0:02:50]} 3. e4 {[%clk 0:02:58]}  e5 {[%clk 0:02:45]} 4. Bc4 {[%clk 0:02:56]}  Be7 {[%clk 0:02:41]} 5. dxe5 {[%clk 0:02:54]}  Nb6 {[%clk 0:02:39]} 6. Bb3 {[%clk 0:02:51]}  Bg4 {[%clk 0:01:50]} 7. h3 {[%clk 0:02:45]}  Bh5 {[%clk 0:01:34]} 8. exd6 {[%clk 0:02:43]}  Bxd6 {[%clk 0:01:30]} 9. O-O {[%clk 0:02:41]}  Ne7 {[%clk 0:01:24]} 10. e5 {[%clk 0:02:35]}  Bc5 {[%clk 0:00:43]} 11. Qe2 {[%clk 0:02:32]}  c6 {[%clk 0:00:41]} 12. Nc3 {[%clk 0:02:29]}  O-O {[%clk 0:00:33]} 13. Ne4 {[%clk 0:02:28]}  Bxf3 {[%clk 0:00:18]} 14. Qxf3 {[%clk 0:02:26]}  Bd4 {[%clk 0:00:11]} 15. Bf4 {[%clk 0:02:25]}  Qc7 {[%clk 0:00:12]} 16. e6 {[%clk 0:02:12]}  Be5 {[%clk 0:00:11]} 17. exf7+ {[%clk 0:01:57]}  Kh8 {[%clk 0:00:06]} 18. Ng5 {[%clk 0:01:54]}  Bxf4 {[%clk 0:00:07]} 19. Ne6 {[%clk 0:01:38]}  Qe5 {[%clk 0:00:05]} 20. Nxf4 {[%clk 0:01:37]}  Qf6 {[%clk 0:00:04]} 21. Rfe1 {[%clk 0:01:28]}  Ng6 {[%clk 0:00:02]} 22. Nxg6+ {[%clk 0:01:21]}  Qxg6 {[%clk 0:00:03]} 23. Rad1 {[%clk 0:01:09]}  Nd5 {[%clk 0:00:03]} 24. Bxd5 {[%clk 0:01:06]}  cxd5 {[%clk 0:00:01]} 25. Re7 {[%clk 0:01:04]}  d4 {[%clk 0:00:02]} 26. Rxd4 {[%clk 0:01:03]} 1-0


[Site "https://www.chess.com"]

[Event "Titled Tuesday Blitz January 10 Late 2023"]
[White "Aguilar, Juan"]
[Black "Zanette, Edgard Vinicius"]
[WhiteFideId "3800091"]
[BlackFideId "2109263"]
[WhiteElo "2254"]
[BlackElo "2085"]
[Result "0-1"]
[Round "07"]
[TimeControl "180+2"]
[Date "2023.01.10"]
[WhiteClock "0:00:35"]
[BlackClock "0:00:26"]

1. g3 {[%clk 0:00:00]}  d5 {[%clk 0:00:00]} 2. Bg2 {[%clk 0:02:58]}  Nf6 {[%clk 0:02:58]} 3. d3 {[%clk 0:02:59]}  Bf5 {[%clk 0:02:57]} 4. Nf3 {[%clk 0:02:59]}  c6 {[%clk 0:02:55]} 5. O-O {[%clk 0:03:00]}  h6 {[%clk 0:02:55]} 6. c4 {[%clk 0:03:00]}  e6 {[%clk 0:02:55]} 7. Qb3 {[%clk 0:03:01]}  Qb6 {[%clk 0:02:49]} 8. Be3 {[%clk 0:03:00]}  Qxb3 {[%clk 0:02:48]} 9. axb3 {[%clk 0:03:01]}  a6 {[%clk 0:02:35]} 10. Nc3 {[%clk 0:03:02]}  Nbd7 {[%clk 0:02:27]} 11. Ra4 {[%clk 0:03:02]}  Bc5 {[%clk 0:02:26]} 12. d4 {[%clk 0:02:53]}  Bd6 {[%clk 0:02:17]} 13. c5 {[%clk 0:02:49]}  Bc7 {[%clk 0:02:17]} 14. Rfa1 {[%clk 0:02:45]}  O-O {[%clk 0:02:16]} 15. b4 {[%clk 0:02:42]}  Rae8 {[%clk 0:02:15]} 16. Nh4 {[%clk 0:02:39]}  Bc2 {[%clk 0:02:02]} 17. R4a3 {[%clk 0:02:26]}  e5 {[%clk 0:01:56]} 18. Rc1 {[%clk 0:02:23]}  Bh7 {[%clk 0:01:53]} 19. Nf3 {[%clk 0:02:22]}  exd4 {[%clk 0:01:49]} 20. Bxd4 {[%clk 0:02:17]}  Ne4 {[%clk 0:01:41]} 21. e3 {[%clk 0:02:14]}  Ndf6 {[%clk 0:01:37]} 22. h3 {[%clk 0:02:08]}  Re7 {[%clk 0:01:30]} 23. Rd1 {[%clk 0:02:04]}  Rfe8 {[%clk 0:01:25]} 24. Nd2 {[%clk 0:01:52]}  Nxd2 {[%clk 0:01:23]} 25. Rxd2 {[%clk 0:01:50]}  Ne4 {[%clk 0:01:21]} 26. Nxe4 {[%clk 0:01:50]}  Bxe4 {[%clk 0:01:17]} 27. Bxe4 {[%clk 0:01:48]}  Rxe4 {[%clk 0:01:17]} 28. Kg2 {[%clk 0:01:35]}  f5 {[%clk 0:01:15]} 29. h4 {[%clk 0:01:35]}  g6 {[%clk 0:01:10]} 30. Ra1 {[%clk 0:01:31]}  Kf7 {[%clk 0:01:05]} 31. f4 {[%clk 0:01:19]}  Bd8 {[%clk 0:01:00]} 32. h5 {[%clk 0:01:14]}  Bf6 {[%clk 0:00:48]} 33. hxg6+ {[%clk 0:01:13]}  Kxg6 {[%clk 0:00:40]} 34. Bxf6 {[%clk 0:01:09]}  Kxf6 {[%clk 0:00:41]} 35. Rh1 {[%clk 0:01:02]}  Kg6 {[%clk 0:00:40]} 36. g4 {[%clk 0:01:03]}  fxg4 {[%clk 0:00:37]} 37. Kg3 {[%clk 0:00:58]}  h5 {[%clk 0:00:34]} 38. f5+ {[%clk 0:00:56]}  Kg5 {[%clk 0:00:33]} 39. Rf2 {[%clk 0:00:41]}  Rxe3+ {[%clk 0:00:33]} 40. Kg2 {[%clk 0:00:40]}  Re2 {[%clk 0:00:32]} 41. Rf1 {[%clk 0:00:41]}  Rxf2+ {[%clk 0:00:27]} 42. Rxf2 {[%clk 0:00:38]}  Rf8 {[%clk 0:00:27]} 43. Re2 {[%clk 0:00:37]}  Rf7 {[%clk 0:00:27]} 44. Re5 {[%clk 0:00:35]}  Kf4 {[%clk 0:00:26]} 0-1


[Site "https://www.chess.com"]